bitfinex/quotes_ETHUSD_20251116
["timestamp","ask_amount","ask_price","bid_price","bid_amount"]
[1763260432631,0.4889,3185.2,3184.2,4.66311285]
[1763260434038,0.002,3185.3,3184.2,5.12942414]
[1763260434332,0.002,3185.3,3184.7,4.66311285]
[1763260436946,0.002,3185.2,3184.7,4.66311285]
[1763260439156,0.6505,3184.8,3184.2,0.46631129]
[1763260439451,0.002,3185.2,3184.3,0.4549]
[1763260439647,0.002,3185.2,3184.3,0.66039521]
[1763260439848,0.002,3185.2,3184.2,0.46631129]
[1763260439849,0.4889,3185.1,3184.2,0.46631129]
[1763260440449,0.4889,3185.1,3184.2,0.92121129]
[1763260440640,0.002,3185.2,3184.2,0.92121129]
[1763260440841,0.002,3185.2,3184.3,0.4549]
[1763260441242,0.4544,3184.3,3184.0,0.81587768]
[1763260441541,0.4536,3184.1,3183.2,0.81587768]
[1763260441741,0.3786,3183.8,3182.6,0.81687768]
[1763260441953,0.3786,3183.8,3182.6,0.20845003]
[1763260442120,0.685,3183.7,3182.6,0.66335003]
[1763260442319,0.685,3183.7,3182.6,0.001]
[1763260442521,0.4889,3183.6,3182.6,0.001]
[1763260442715,0.4889,3183.6,3182.6,4.66411285]
[1763260443038,0.4889,3183.6,3182.6,5.11901285]
[1763260443253,0.4889,3183.5,3182.6,0.001]
[1763260443856,0.4544,3182.7,3182.6,0.001]
[1763260444520,0.4889,3183.0,3182.6,0.001]
[1763260444735,0.461,3182.7,3182.6,0.001]
[1763260445228,0.9239,3182.7,3182.6,0.001]
[1763260448374,0.4629,3183.1,3182.6,0.001]
[1763260448660,0.4629,3183.5,3182.6,0.001]
[1763260449025,0.4629,3184.1,3182.6,0.001]
[1763260449263,0.659,3183.7,3182.6,0.001]
[1763260449429,3.80000752,3183.7,3182.6,0.001]
[1763260449630,0.49302944,3183.5,3182.6,0.001]
[1763260450480,0.49302944,3183.5,3182.6,0.96780129]
[1763260450643,0.49302944,3183.5,3182.7,0.03141986]
[1763260450962,0.49302944,3183.5,3182.6,0.96780129]
[1763260451439,0.461,3182.7,3182.6,0.001]
[1763260451864,0.9239,3182.7,3182.6,0.001]
[1763260452067,0.4629,3183.2,3182.6,0.001]
[1763260452481,0.95592944,3183.5,3182.6,0.001]
[1763260452853,0.49302944,3183.5,3182.6,0.001]
[1763260453053,0.95592944,3183.5,3182.6,0.001]
[1763260453893,0.49302944,3183.5,3182.6,0.92231129]
[1763260454064,0.1961,3183.7,3182.6,0.92231129]
[1763260454384,0.1961,3183.7,3182.7,0.4549]
[1763260454589,0.6694,3183.7,3182.7,0.4549]
[1763260454886,0.6694,3183.7,3182.6,0.001]
[1763260455189,0.4733,3183.6,3182.6,0.001]
[1763260455884,0.002,3183.2,3182.6,0.001]
[1763260456699,0.4753,3183.2,3182.6,0.001]
[1763260457614,0.464,3182.7,3182.6,0.001]
[1763260458059,0.9373,3182.7,3182.6,0.001]
[1763260458675,0.002,3183.2,3182.6,0.001]
[1763260458956,0.464,3182.7,3182.6,0.001]
[1763260459156,0.9373,3182.7,3182.6,0.001]
[1763260462690,0.464,3182.7,3182.6,0.001]
[1763260462889,0.002,3183.2,3182.6,0.4559]
[1763260463383,0.002,3183.2,3182.6,0.001]
[1763260463589,0.4753,3183.2,3182.6,0.001]
[1763260465269,0.464,3182.7,3182.6,0.001]
[1763260467402,0.9373,3182.7,3182.6,0.001]
[1763260469774,1.342804,3182.7,3182.6,0.001]
[1763260471405,0.464,3182.7,3182.6,0.001]
[1763260471975,0.9373,3182.7,3182.6,0.001]
[1763260473771,2.4765448,3182.7,3182.6,0.001]
[1763260474910,5.61853116,3182.7,3182.6,0.001]
[1763260475318,2.4785448,3182.7,3182.6,0.001]
[1763260475524,5.62053116,3182.7,3182.6,0.001]
[1763260476499,2.4785448,3182.7,3182.6,0.001]
[1763260476716,5.62053116,3182.7,3182.6,0.001]
[1763260481581,6.11374501,3182.7,3182.6,0.001]
[1763260482237,5.62053116,3182.7,3182.6,0.001]
[1763260485032,6.11375976,3182.7,3182.6,0.001]
[1763260488107,6.11375976,3182.7,3182.6,0.0002]
[1763260494536,0.002,3182.7,3182.6,0.4551]
[1763260494734,0.002,3182.7,3182.6,0.0002]
[1763260495032,0.4643,3182.7,3182.6,0.0002]
[1763260495238,0.869804,3182.7,3182.6,0.0002]
[1763260495434,0.4643,3182.7,3182.6,0.0002]
[1763260495914,0.002,3182.7,3182.6,0.0002]
[1763260496437,1.349704,3182.7,3182.6,0.0002]
[1763260497562,1.84289971,3182.7,3182.6,0.0002]
[1763260498861,0.90069971,3182.7,3182.6,0.0002]
[1763260499059,0.90069971,3182.7,3182.6,0.4551]
[1763260499862,0.90069971,3182.7,3182.6,0.0002]
[1763260500064,0.90069971,3182.7,3182.6,0.4551]
[1763260500243,0.49519571,3182.7,3182.6,0.4551]
[1763260500943,0.002,3183.1,3182.6,0.91]
[1763260501269,0.002,3183.1,3183.0,0.4549]
[1763260501441,0.002,3183.1,3183.0,0.9098]
[1763260501644,0.4643,3183.1,3182.6,0.0002]
[1763260501844,0.002,3183.1,3182.7,0.4549]
[1763260502068,0.002,3183.1,3183.0,0.4549]
[1763260502438,0.002,3183.1,3182.6,0.0002]
[1763260502752,0.002,3183.1,3183.0,0.4549]
[1763260503151,0.002,3183.1,3183.0,0.9098]
[1763260503660,0.002,3183.1,3183.0,0.4549]
[1763260503863,0.002,3183.1,3182.6,0.0002]
[1763260504442,0.002,3183.1,3183.0,0.4549]
[1763260504941,0.002,3183.1,3182.6,0.0002]
[1763260505176,0.002,3183.1,3182.6,0.4551]
[1763260505684,0.002,3183.1,3183.0,0.4549]
[1763260506261,0.4927,3183.1,3182.6,0.0002]
[1763260507158,0.405504,3183.0,3182.6,0.0002]
[1763260507840,0.896204,3182.7,3182.6,0.0002]
[1763260508445,1.365004,3182.7,3182.6,0.0002]
[1763260508640,5.64073116,3182.7,3182.6,0.0002]
[1763260509554,2.4987448,3182.7,3182.6,0.0002]
[1763260509758,5.64073116,3182.7,3182.6,0.0002]
[1763260510058,2.4987448,3182.7,3182.6,0.0002]
[1763260512985,5.64073116,3182.7,3182.6,0.0002]
[1763260513181,2.0299448,3182.7,3182.6,0.0002]
[1763260513753,1.5392448,3182.7,3182.6,0.0002]
[1763260514066,1.5392448,3182.7,3182.6,0.4551]
[1763260514474,1.1337408,3182.7,3182.6,0.4551]
[1763260514989,1.5392448,3182.7,3182.6,0.4551]
[1763260515153,1.5392448,3182.7,3182.6,0.0002]
[1763260515348,2.4773448,3182.7,3182.6,0.0002]
[1763260516668,2.0103448,3182.7,3182.6,0.0002]
[1763260517383,1.5392448,3182.7,3182.6,0.0002]
[1763260518455,2.0103448,3182.7,3182.6,0.0002]
[1763260518858,2.4773448,3182.7,3182.6,0.0002]
[1763260520594,1.5392448,3182.7,3182.6,0.0002]
[1763260520896,0.002,3183.1,3182.6,4.47068267]
[1763260521099,0.002,3183.1,3183.0,4.01558267]
[1763260521304,0.002,3183.1,3183.0,0.4549]
[1763260521963,0.002,3183.1,3183.0,0.9098]
[1763260522987,0.002,3183.1,3183.0,0.4549]
[1763260523180,0.002,3183.1,3183.0,0.9098]
[1763260524520,0.002,3183.1,3183.0,0.4549]
[1763260529223,0.002,3183.1,3183.0,0.9098]
[1763260534649,0.002,3183.1,3183.0,0.4549]
[1763260534804,0.002,3183.1,3183.0,0.9098]
[1763260536163,0.002,3183.1,3183.0,0.4549]
[1763260537559,0.002,3183.1,3183.0,0.9098]
[1763260538950,0.002,3183.1,3183.0,0.4549]
[1763260539168,0.002,3183.1,3182.7,0.4549]
[1763260539369,0.002,3183.1,3183.0,0.4549]
[1763260540070,0.002,3183.1,3183.0,0.9098]
[1763260540659,0.002,3183.1,3183.0,0.4549]
[1763260541026,0.002,3183.1,3182.6,0.4551]
[1763260541331,0.002,3183.1,3182.6,0.95201242]
[1763260542668,0.002,3183.1,3182.6,0.4551]
[1763260542966,0.002,3183.1,3182.7,3.56117536]
[1763260543151,0.002,3183.1,3182.6,0.0002]
[1763260543359,0.002,3183.1,3182.7,3.56117536]
[1763260544367,0.002,3183.1,3183.0,0.4549]
[1763260544731,0.4989,3183.1,3182.6,0.0002]
[1763260544929,0.9522,3183.1,3182.6,0.0002]
[1763260546134,0.4989,3183.1,3182.6,0.0002]
[1763260547247,0.9522,3183.1,3182.6,0.0002]
[1763260548095,0.4989,3183.1,3182.6,0.0002]
[1763260548589,0.002,3183.1,3182.6,0.4551]
[1763260551159,0.002,3183.1,3183.0,0.4549]
[1763260552388,0.002,3183.1,3182.6,0.0002]
[1763260552591,0.002,3183.1,3182.6,0.4551]
[1763260553267,0.002,3183.1,3183.0,0.4549]
[1763260558372,0.002,3183.1,3182.6,0.0002]
[1763260558582,0.002,3183.1,3182.7,0.4549]
[1763260558769,0.4553,3183.1,3182.6,0.0002]
[1763260558963,0.002,3183.1,3183.0,0.4549]
[1763260559710,0.002,3183.1,3183.0,0.9098]
[1763260560491,0.002,3183.5,3183.1,1.0461]
[1763260560677,0.002,3183.5,3183.4,5.12565569]
[1763260561081,0.002,3183.5,3183.4,5.58055569]
[1763260561288,0.002,3183.8,3183.4,5.58055569]
[1763260561494,0.002,3183.8,3183.1,0.1363]
[1763260561805,0.002,3183.8,3183.2,0.4549]
[1763260562117,0.002,3183.8,3183.7,0.4549]
[1763260562611,0.002,3183.8,3183.7,0.9098]
[1763260563021,0.002,3183.8,3183.7,1.46785557]
[1763260567022,0.002,3183.8,3183.7,4.34833072]
[1763260567223,0.002,3183.8,3183.7,4.80323072]
[1763260568522,0.002,3183.8,3183.7,1.01295557]
[1763260568831,0.002,3183.8,3183.7,1.46785557]
[1763260571046,0.002,3183.8,3183.7,1.01295557]
[1763260572102,0.002,3183.8,3183.6,3.33537515]
[1763260572103,0.4923,3183.8,3183.6,3.33537515]
[1763260572335,0.4923,3183.8,3183.3,3.33537515]
[1763260572840,0.4923,3183.8,3183.3,3.79027515]
[1763260573153,0.002,3183.8,3183.7,0.4549]
[1763260574333,0.002,3183.8,3183.7,0.83392752]
[1763260575035,0.002,3183.8,3183.7,0.4549]
[1763260575532,0.002,3183.8,3183.2,8.95150304]
[1763260576137,0.002,3183.8,3183.2,8.49660304]
[1763260576317,0.002,3183.8,3183.3,0.4549]
[1763260577610,0.4822,3183.4,3182.8,0.1363]
[1763260577808,0.4822,3183.4,3182.8,0.64656186]
[1763260578548,0.4742,3183.6,3182.8,0.64656186]
[1763260578845,0.4742,3183.6,3182.9,0.4549]
[1763260579547,0.4822,3183.0,3182.8,0.51026186]
[1763260579839,0.4742,3183.6,3182.6,0.0002]
[1763260579840,0.4822,3182.9,3182.6,0.0002]
[1763260580047,0.3875,3182.7,3182.6,0.0002]
[1763260580556,0.6568,3182.9,3182.6,0.0002]
[1763260580953,0.1826,3182.9,3182.6,0.0002]
[1763260582632,0.4822,3182.7,3182.6,0.0002]
[1763260583062,0.9564,3182.7,3182.6,0.0002]
[1763260583763,0.4822,3182.7,3182.6,0.0002]
[1763260586571,0.4822,3182.7,3182.6,0.0002]
[1763260587464,0.1826,3182.9,3182.6,0.0002]
[1763260587671,0.4822,3182.7,3182.6,0.0002]
[1763260588483,0.6568,3182.9,3182.6,0.0002]
[1763260589386,3.32349854,3183.9,3182.8,0.4549]
[1763260589387,0.1826,3183.5,3182.8,0.4549]
[1763260589695,0.1826,3183.5,3182.6,0.48652085]
[1763260589696,0.4742,3183.4,3182.6,0.0002]
[1763260589898,0.4822,3182.7,3182.6,0.0002]
[1763260590048,0.4742,3183.4,3182.6,0.0002]
[1763260590991,0.4742,3183.4,3182.7,0.4549]
[1763260591409,0.4742,3183.4,3182.6,0.0002]
[1763260594949,0.4742,3183.4,3182.8,3.33790378]
[1763260596762,0.4742,3183.4,3182.6,0.0002]
[1763260600095,0.96722678,3183.4,3182.8,3.33790378]
[1763260600465,0.49302678,3183.4,3183.3,0.4549]
[1763260600860,0.002,3183.5,3183.3,0.9098]
[1763260601066,0.002,3183.5,3183.4,3.79280378]
[1763260601274,0.002,3183.5,3183.4,0.4549]
[1763260601898,0.002,3183.5,3183.4,0.9098]
[1763260602202,0.002,3183.5,3183.4,2.46831118]
[1763260604605,0.002,3183.5,3183.4,5.60960665]
[1763260604770,0.002,3183.5,3183.4,2.46831118]
[1763260604976,0.002,3183.5,3183.4,2.01341118]
[1763260605172,0.002,3183.5,3183.4,0.87967038]
[1763260605477,0.002,3183.5,3183.4,0.9098]
[1763260607225,0.002,3183.5,3183.0,1.1337408]
[1763260607514,0.9593,3183.5,3182.9,0.1363]
[1763260607709,0.4863,3183.0,3182.6,0.0002]
[1763260607909,0.4718,3183.5,3182.6,0.0002]
[1763260608125,0.002,3183.5,3182.9,0.4549]
[1763260608488,0.002,3183.5,3182.9,0.9098]
[1763260608687,0.002,3183.5,3183.0,0.55759581]
[1763260609215,0.002,3183.5,3183.4,0.4549]
[1763260609376,0.002,3183.5,3183.4,0.9098]
[1763260609571,0.002,3183.5,3183.4,0.4549]
[1763260609777,0.002,3183.5,3183.4,0.9098]
[1763260610075,0.002,3183.5,3183.4,0.99704316]
[1763260610301,0.002,3183.5,3183.4,0.54214316]
[1763260610818,0.002,3183.5,3183.4,0.99704316]
[1763260611005,0.002,3183.5,3183.4,1.45194316]
[1763260611419,0.002,3183.5,3183.4,2.58568396]
[1763260611722,0.002,3183.5,3183.4,5.75839238]
[1763260613205,0.002,3183.5,3183.4,5.72697943]
[1763260614108,0.002,3183.5,3183.4,5.75839238]
[1763260616634,0.002,3183.5,3183.4,5.75939238]
[1763260618612,0.002,3183.8,3183.5,0.405504]
[1763260618909,0.002,3183.8,3183.7,6.50577637]
[1763260619351,0.002,3183.8,3183.7,6.96067637]
[1763260620950,0.002,3183.8,3183.7,10.10167583]
[1763260622170,0.1961,3185.9,3183.8,0.405504]
[1763260622378,0.1887,3185.6,3184.8,5.12583157]
[1763260622559,0.1887,3185.6,3185.2,4.51163157]
[1763260622766,0.6659,3185.9,3185.2,4.51163157]
[1763260623274,0.16409875,3186.9,3185.2,4.51163157]
[1763260623275,0.4698,3186.3,3185.6,4.51163157]
[1763260623773,0.4875,3185.7,3185.6,4.51163157]
[1763260624466,0.1887,3185.9,3185.6,4.51163157]
[1763260625067,0.6769,3185.9,3185.6,4.51163157]
[1763260625287,0.1887,3185.9,3185.6,4.51163157]
[1763260626270,0.4725,3185.7,3185.2,4.51163157]
[1763260626784,0.49258754,3186.4,3185.6,4.96653157]
[1763260626785,0.4882,3186.2,3185.6,4.96653157]
[1763260627335,0.49258754,3186.4,3186.0,4.51163157]
[1763260627739,0.4725,3186.1,3186.0,4.51163157]
[1763260627939,0.4725,3186.1,3185.3,1.5392448]
[1763260628182,0.4725,3186.1,3185.0,1.1337408]
[1763260628183,0.9607,3186.1,3185.0,4.51163157]
[1763260628379,0.3814,3185.3,3185.1,1.1337408]
[1763260628677,0.49258754,3186.4,3185.1,1.1337408]
[1763260628678,0.4882,3186.0,3185.1,1.1337408]
[1763260628978,0.4882,3186.3,3185.4,4.51163157]
[1763260629670,0.4882,3186.3,3185.8,4.51163157]
[1763260630385,0.49258754,3186.4,3186.2,5.10283157]
[1763260630717,0.49258754,3186.4,3186.3,1.5886408]
[1763260630876,0.1887,3187.3,3186.3,1.5886408]
[1763260631073,0.4882,3187.2,3186.3,1.1337408]
[1763260631311,0.6554,3186.4,3185.9,1.1337408]
[1763260631614,0.3871,3186.3,3185.9,1.1337408]
[1763260631784,0.8753,3186.3,3185.9,1.1337408]
[1763260632507,0.4725,3186.0,3185.4,4.51163157]
[1763260632675,0.6546,3185.5,3185.0,4.51163157]
[1763260632996,0.4882,3186.1,3185.1,1.1337408]
[1763260633182,0.1998,3185.6,3185.0,4.51163157]
[1763260633377,0.4554,3186.3,3185.1,1.1337408]
[1763260633575,0.1829,3186.4,3185.4,4.51163157]
[1763260633576,0.1998,3185.9,3185.4,4.51163157]
[1763260634085,0.4554,3185.8,3185.4,4.51163157]
[1763260635109,0.1998,3185.9,3185.4,4.51163157]
[1763260635327,0.1998,3185.9,3185.4,4.96279473]
[1763260636479,0.002,3186.1,3185.5,0.4549]
[1763260636723,0.002,3186.1,3185.4,4.96279473]
[1763260637026,0.6985,3185.5,3185.4,4.51163157]
[1763260637325,0.1998,3185.7,3185.4,4.51163157]
[1763260637478,0.002,3186.1,3185.4,4.51163157]
[1763260638080,0.4554,3186.0,3185.4,4.51163157]
[1763260638323,0.002,3186.1,3185.4,4.51163157]
[1763260638635,0.4554,3186.0,3185.5,0.45116316]
[1763260638780,0.6985,3185.5,3185.4,4.51163157]
[1763260639309,0.4987,3185.5,3185.4,4.51163157]
[1763260639479,0.6552,3185.7,3185.4,4.51163157]
[1763260639825,0.6552,3185.7,3184.6,0.82672542]
[1763260639826,0.4987,3185.5,3184.5,0.82672542]
[1763260640025,0.4987,3185.5,3184.6,0.5338357]
[1763260640174,0.4554,3185.4,3184.6,0.5338357]
[1763260640714,0.4554,3185.4,3184.5,1.1337408]
[1763260640715,0.6985,3184.7,3184.4,4.51163157]
[1763260641827,0.366,3184.5,3184.4,4.51163157]
[1763260641978,0.366,3184.5,3184.0,1.2930408]
[1763260641979,0.6552,3184.7,3184.0,4.67093157]
[1763260642342,0.002,3186.1,3184.7,1.889]
[1763260642497,0.6552,3187.6,3186.1,0.405504]
[1763260642819,0.4554,3187.5,3186.6,1.1337408]
[1763260644190,0.4554,3187.5,3186.6,2.01210161]
[1763260644387,0.1998,3187.6,3186.7,0.65874785]
[1763260644740,0.6552,3187.6,3186.6,2.01210161]
[1763260644954,0.6552,3187.6,3186.7,0.65879792]
[1763260645225,0.6985,3186.6,3185.8,5.64537237]
[1763260645520,0.6985,3186.6,3185.9,0.65936268]
[1763260645726,1.1539,3186.6,3186.0,0.65936268]
[1763260646041,0.4554,3186.5,3185.8,5.64537237]
[1763260646241,0.1998,3186.6,3185.9,1.23985829]
[1763260646545,0.1998,3186.6,3186.0,1.79313185]
[1763260646546,0.6552,3186.6,3186.0,1.79313185]
[1763260646692,0.6552,3186.6,3186.0,1.1337408]
[1763260646890,0.1998,3186.6,3186.0,1.1337408]
[1763260647086,0.605304,3187.6,3186.3,4.51163157]
[1763260647087,0.1998,3187.6,3186.3,4.51163157]
[1763260647336,0.4554,3187.8,3187.2,4.51163157]
[1763260647533,0.1998,3188.3,3187.2,4.51163157]
[1763260647832,0.4554,3188.2,3187.2,4.51163157]
[1763260648442,0.4554,3188.2,3187.3,1.79245171]
[1763260648780,0.4554,3188.2,3187.2,4.51163157]
[1763260649334,0.4554,3188.2,3186.7,0.82672542]
[1763260649335,0.4554,3188.2,3187.0,1.1337408]
[1763260649644,0.49228711,3188.0,3187.1,0.65876459]
[1763260649849,0.49228711,3188.0,3187.3,4.51163157]
[1763260650432,0.4554,3187.9,3187.0,1.1337408]
[1763260651769,0.4554,3187.8,3186.7,1.28162542]
[1763260651942,0.4554,3187.8,3187.1,4.51163157]
[1763260653167,0.4987,3187.2,3186.7,0.82672542]
[1763260653468,0.4987,3187.2,3186.7,4.51163157]
[1763260653646,0.4554,3187.8,3187.1,4.51163157]
[1763260654865,0.49428711,3188.0,3187.1,4.51163157]
[1763260655073,0.49428711,3188.0,3187.6,4.51163157]
[1763260656068,0.4747,3188.0,3187.6,4.51163157]
[1763260656432,0.002,3188.0,3187.6,4.51163157]
[1763260656633,0.002,3188.0,3186.7,1.27788858]
[1763260656634,0.4774,3187.7,3187.2,4.51163157]
[1763260657066,0.9501,3187.7,3187.2,4.51163157]
[1763260657437,0.002,3188.0,3187.2,4.96279473]
[1763260657637,0.002,3188.0,3187.6,4.51163157]
[1763260658147,0.4747,3188.0,3187.6,4.51163157]
[1763260658467,0.4774,3187.7,3187.6,4.51163157]
[1763260658674,0.4774,3187.7,3187.2,4.96279473]
[1763260658851,0.9501,3187.7,3187.2,4.96279473]
[1763260659047,0.9501,3187.7,3187.2,4.51163157]
[1763260659376,0.3424,3187.3,3186.8,4.51163157]
[1763260659733,0.4727,3187.6,3186.8,4.51163157]
[1763260659938,0.49430569,3188.0,3186.7,3.58918168]
[1763260660136,0.49430569,3188.0,3187.2,4.51163157]
[1763260660336,0.96700569,3188.0,3187.2,4.51163157]
[1763260660634,0.4727,3187.9,3187.2,4.51163157]
[1763260660852,0.96700569,3188.0,3187.2,4.51163157]
[1763260661060,0.49430569,3188.0,3187.6,4.51163157]
[1763260662462,0.49430569,3188.0,3187.9,0.4549]
[1763260662670,0.002,3188.0,3187.9,0.4549]
[1763260662836,0.002,3188.0,3187.6,4.51163157]
[1763260663038,0.002,3188.0,3187.7,0.45116316]
[1763260663677,0.002,3188.0,3187.9,0.4549]
[1763260663889,0.002,3188.0,3187.7,0.90606316]
[1763260663890,0.002,3188.0,3187.7,0.45116316]
[1763260666165,0.002,3188.0,3187.9,0.4549]
[1763260666982,0.4794,3188.0,3187.7,0.45116316]
[1763260667284,0.002,3188.0,3187.6,4.51163157]
[1763260667448,0.002,3188.0,3187.7,0.45116316]
[1763260667648,0.4774,3187.7,3187.6,4.51163157]
[1763260667980,0.002,3188.0,3187.6,4.51163157]
[1763260668182,0.002,3188.0,3187.6,4.96653157]
[1763260668349,0.4747,3188.0,3187.6,4.51163157]
[1763260668748,0.002,3188.0,3187.2,4.51163157]
[1763260668955,0.1895,3187.9,3187.3,5.76209201]
[1763260669183,0.002,3188.0,3187.3,5.10416299]
[1763260669384,0.002,3188.0,3187.3,5.55906299]
[1763260669570,0.002,3188.0,3187.4,0.4549]
[1763260670375,0.002,3188.0,3187.3,5.10416299]
[1763260670584,0.002,3188.0,3187.4,0.5104163]
[1763260670763,0.002,3188.0,3187.4,0.9653163]
[1763260671695,0.002,3188.0,3187.5,0.65945026]
[1763260671696,0.1895,3187.9,3187.5,0.65945026]
[1763260671901,0.1895,3187.9,3187.2,1.1337408]
[1763260672071,0.002,3188.0,3187.3,1.23817348]
[1763260672394,0.002,3188.0,3187.4,0.65949942]
[1763260672598,0.002,3188.0,3187.5,0.65949942]
[1763260672795,0.002,3188.0,3187.6,0.65949942]
[1763260673010,0.002,3188.0,3187.9,0.4549]
[1763260673212,0.002,3188.0,3187.9,1.11568229]
[1763260673417,0.002,3188.0,3187.9,1.27274052]
[1763260673801,0.002,3188.0,3187.9,0.81784052]
[1763260673802,0.4794,3188.0,3187.9,0.81784052]
[1763260674010,0.9521,3188.0,3187.9,0.66078229]
[1763260674514,0.002,3188.0,3187.9,0.66078229]
[1763260675416,0.4794,3188.0,3187.9,0.66079024]
[1763260675884,0.9521,3188.0,3187.4,1.96046622]
[1763260676077,0.4794,3188.0,3187.5,0.91478177]
[1763260676393,0.6622,3187.9,3187.6,0.66086774]
[1763260676610,0.4774,3187.3,3186.8,0.82672542]
[1763260676786,0.4774,3187.3,3186.9,0.66166464]
[1763260676983,0.9501,3187.3,3186.7,0.82672542]
[1763260677303,0.4774,3187.3,3186.8,0.82672542]
[1763260677710,0.4774,3187.3,3186.8,1.01923022]
[1763260677711,0.4727,3187.2,3186.8,1.01923022]
[1763260678392,0.1895,3187.9,3186.8,1.01923022]
[1763260678393,0.4727,3187.5,3186.8,1.01923022]
[1763260679193,0.1895,3187.9,3186.9,0.03137845]
[1763260679398,0.4727,3187.6,3186.8,1.01923022]
[1763260680092,0.1895,3187.9,3186.8,1.01923022]
[1763260680093,0.6622,3187.9,3186.8,1.01923022]
[1763260680617,0.4727,3187.8,3186.8,1.01923022]
[1763260680915,0.4727,3187.8,3186.5,0.82672542]
[1763260680916,0.6669,3186.9,3186.5,0.82672542]
[1763260681122,0.4763,3186.4,3186.2,0.82672542]
[1763260681320,0.1895,3186.9,3186.0,0.001]
[1763260681321,0.4774,3186.1,3186.0,0.001]
[1763260681684,0.9501,3186.1,3186.0,0.001]
[1763260685183,0.4774,3186.1,3186.0,0.001]
[1763260685390,0.4763,3186.5,3186.0,0.001]
[1763260687630,0.4934,3186.1,3186.0,0.001]
[1763260688094,0.9697,3186.1,3186.0,0.001]
[1763260690315,0.4934,3186.1,3186.0,0.001]
[1763260690718,0.9697,3186.1,3186.0,0.001]
[1763260690919,0.002,3186.5,3186.0,0.4559]
[1763260691130,0.4934,3186.1,3186.0,0.001]
[1763260691307,0.4763,3186.4,3186.0,0.001]
[1763260692024,0.4934,3186.1,3186.0,0.001]
[1763260693143,0.4763,3186.4,3186.0,0.001]
[1763260693341,0.4845,3186.1,3186.0,0.001]
[1763260694999,0.4763,3186.4,3186.0,0.001]
[1763260695430,0.4845,3186.1,3186.0,0.001]
[1763260696129,0.4763,3186.4,3186.0,0.001]
[1763260697012,0.002,3186.5,3186.0,0.001]
[1763260697602,0.4639,3186.5,3186.0,0.001]
[1763260697945,0.4845,3186.1,3186.0,0.001]
[1763260699508,0.4639,3186.5,3186.0,0.001]
[1763260700443,0.4845,3186.1,3186.0,0.001]
[1763260701327,0.9464,3186.1,3186.0,0.001]
[1763260703041,0.405504,3186.0,3184.5,0.001]
[1763260703209,0.867404,3186.0,3184.5,0.001]
[1763260703408,0.1828,3185.9,3184.5,0.15996408]
[1763260703642,0.49255415,3185.8,3184.5,0.15996408]
[1763260704012,0.4619,3185.7,3184.5,0.15996408]
[1763260705614,0.4619,3185.7,3184.5,0.001]
[1763260709272,0.4619,3185.7,3184.5,0.4569]
[1763260709425,0.4619,3185.7,3184.5,1.5906408]
[1763260709748,0.49257109,3185.8,3185.6,0.4559]
[1763260709939,0.49257109,3185.8,3185.7,0.48729027]
[1763260710255,0.002,3186.1,3185.7,0.48729027]
[1763260710444,0.002,3186.1,3186.0,0.4559]
[1763260711962,0.002,3186.1,3186.0,0.9118]
[1763260712327,0.002,3186.1,3186.0,0.8609729]
[1763260712527,0.002,3186.1,3186.0,0.4559]
[1763260712966,0.002,3186.1,3186.0,0.9118]
[1763260713260,0.002,3186.1,3186.0,0.4559]
[1763260714459,0.002,3186.1,3185.7,4.65299983]
[1763260714460,0.4641,3186.1,3185.7,4.65299983]
[1763260714662,0.002,3186.1,3185.7,4.65299983]
[1763260717429,0.002,3186.1,3185.7,5.57435549]
[1763260717832,0.002,3186.1,3185.6,0.1373]
[1763260718027,0.002,3186.1,3185.6,0.5932]
[1763260719028,0.002,3186.1,3185.6,0.1373]
[1763260719560,0.4693,3186.1,3185.5,1.9618844]
[1763260719754,0.4693,3186.1,3185.5,1.1337408]
[1763260719933,0.4693,3186.1,3185.5,2.66896282]
[1763260720133,0.4693,3186.1,3185.5,1.84081922]
[1763260720832,0.4693,3186.1,3185.5,1.1337408]
[1763260721029,0.4693,3186.1,3185.4,0.8281436]
[1763260721268,0.4693,3186.1,3185.2,0.1373]
[1763260721769,0.002,3186.1,3185.3,0.4559]
[1763260722767,0.4693,3186.1,3185.2,0.1373]
[1763260723769,0.002,3186.1,3185.3,1.54424572]
[1763260723966,0.002,3186.1,3185.4,0.8281436]
[1763260724166,0.002,3186.1,3185.3,2.82828932]
[1763260724775,0.002,3186.1,3185.4,0.8281436]
[1763260725473,0.002,3186.1,3185.3,2.82828932]
[1763260725642,0.002,3186.1,3185.4,0.61050854]
[1763260726466,0.002,3186.1,3185.3,2.82828932]
[1763260728081,0.002,3186.1,3185.5,1.1337408]
[1763260728249,0.002,3186.1,3185.4,2.4177844]
[1763260728979,0.002,3186.1,3185.5,4.50419126]
[1763260735185,0.002,3186.1,3185.5,5.33233486]
[1763260735500,0.002,3186.1,3185.6,0.64660757]
[1763260735660,0.4693,3186.1,3185.6,0.64660757]
[1763260738400,0.002,3186.1,3186.0,0.4559]
[1763260738565,0.002,3186.1,3185.7,0.4559]
[1763260738989,0.002,3186.1,3185.6,1.47475117]
[1763260739185,0.002,3186.1,3186.0,0.4559]
[1763260740100,0.4641,3186.1,3185.9,5.33233486]
[1763260740296,0.4621,3186.0,3185.9,0.8281436]
[1763260740699,0.002,3186.1,3185.9,0.8281436]
[1763260741196,0.9294,3186.0,3185.9,0.8281436]
[1763260741606,0.002,3186.1,3185.9,0.8281436]
[1763260742309,0.002,3186.1,3186.0,0.4559]